[Event "Live Chess"]
[Site "Chess.com"]
[Date "2023.05.21"]
[Round "-"]
[White "Biranidun"]
[Black "peter-785"]
[Result "1-0"]
[WhiteElo "2547"]
[BlackElo "1190"]
[TimeControl "300"]
[EndTime "2:00:54 PDT"]
[Termination "Biranidun won by resignation"]

1. e4 {[%clk 0:04:59]} 1... c5 {[%clk 0:04:59.2]} 2. Nf3 {[%clk 0:04:57.7]} 2...
d6 {[%clk 0:04:58.1]} 3. d4 {[%clk 0:04:57.3]} 3... cxd4 {[%clk 0:04:56.2]} 4.
Nxd4 {[%clk 0:04:57.2]} 4... e6 {[%clk 0:04:55.3]} 5. Nc3 {[%clk 0:04:56.3]}
5... Nf6 {[%clk 0:04:54.8]} 6. g4 {[%clk 0:04:54.9]} 6... Be7 {[%clk 0:04:54.3]}
7. g5 {[%clk 0:04:54.2]} 7... Nfd7 {[%clk 0:04:47.4]} 8. h4 {[%clk 0:04:53.3]}
8... Ne5 {[%clk 0:04:39.8]} 9. f4 {[%clk 0:04:50.7]} 9... Nec6 {[%clk 0:04:34]}
10. Nf3 {[%clk 0:04:49.5]} 10... a6 {[%clk 0:04:20.1]} 11. Be3 {[%clk
0:04:48.1]} 11... b5 {[%clk 0:04:17.7]} 12. Qd2 {[%clk 0:04:45.8]} 12... Bb7
{[%clk 0:04:15.3]} 13. O-O-O {[%clk 0:04:44.4]} 13... Qa5 {[%clk 0:04:09.2]} 14.
Kb1 {[%clk 0:04:43.2]} 14... b4 {[%clk 0:04:05.1]} 15. Ne2 {[%clk 0:04:41.9]}
15... Nd7 {[%clk 0:03:56.1]} 16. Ng3 {[%clk 0:04:40.4]} 16... Rd8 {[%clk
0:03:49.5]} 17. h5 {[%clk 0:04:36.1]} 17... Nc5 {[%clk 0:03:40.9]} 18. Bc4
{[%clk 0:04:28.3]} 18... d5 {[%clk 0:03:37.4]} 19. exd5 {[%clk 0:04:26.8]} 19...
exd5 {[%clk 0:03:34.8]} 20. Bb3 {[%clk 0:04:21.1]} 20... Ne4 {[%clk 0:03:33.1]}
21. Qe1 {[%clk 0:04:16.5]} 21... Nxg3 {[%clk 0:03:13.7]} 22. Qxg3 {[%clk
0:04:16.4]} 22... Bc5 {[%clk 0:03:04.6]} 23. Bxc5 {[%clk 0:04:13.9]} 23... Qxc5
{[%clk 0:03:02.4]} 24. Rhe1+ {[%clk 0:04:13.8]} 24... Kf8 {[%clk 0:02:53.4]} 25.
f5 {[%clk 0:04:09.3]} 25... Re8 {[%clk 0:02:43.6]} 26. Rxe8+ {[%clk 0:04:06.6]}
26... Kxe8 {[%clk 0:02:41.8]} 27. Rxd5 {[%clk 0:04:06.5]} 27... Ne7 {[%clk
0:02:34.4]} 28. Rxc5 {[%clk 0:04:05.4]} 1-0

[Event "Live Chess"]
[Site "Chess.com"]
[Date "2023.05.21"]
[Round "-"]
[White "LiamClery2020"]
[Black "chessfiction"]
[Result "0-1"]
[WhiteElo "2028"]
[BlackElo "2334"]
[TimeControl "300"]
[EndTime "2:00:56 PDT"]
[Termination "chessfiction won by resignation"]

1. e4 {[%clk 0:04:59.2]} 1... e5 {[%clk 0:04:58.7]} 2. Nc3 {[%clk 0:04:57]} 2...
d5 {[%clk 0:04:58.6]} 3. Nxd5 {[%clk 0:04:55.6]} 3... c6 {[%clk 0:04:56.9]} 4.
Nc3 {[%clk 0:04:54.7]} 4... Bc5 {[%clk 0:04:56.4]} 5. Nf3 {[%clk 0:04:51.7]}
5... Nf6 {[%clk 0:04:55.7]} 6. d3 {[%clk 0:04:50.6]} 6... O-O {[%clk 0:04:54.5]}
7. Be3 {[%clk 0:04:49.6]} 7... Bxe3 {[%clk 0:04:52.7]} 8. fxe3 {[%clk
0:04:49.5]} 8... Qb6 {[%clk 0:04:51.7]} 9. Qc1 {[%clk 0:04:46.5]} 9... Ng4
{[%clk 0:04:49.5]} 10. Nd1 {[%clk 0:04:45.4]} 10... f5 {[%clk 0:04:46.4]} 11. h3
{[%clk 0:04:43.2]} 11... fxe4 {[%clk 0:04:44.5]} 12. dxe4 {[%clk 0:04:41.9]}
12... Nf6 {[%clk 0:04:40.6]} 13. Bc4+ {[%clk 0:04:40.9]} 13... Kh8 {[%clk
0:04:35.9]} 14. O-O {[%clk 0:04:40.1]} 14... Nbd7 {[%clk 0:04:29.1]} 15. Ng5
{[%clk 0:04:34.8]} 15... h6 {[%clk 0:04:23.5]} 16. Ne6 {[%clk 0:04:30.1]} 16...
Re8 {[%clk 0:04:17.4]} 17. Qd2 {[%clk 0:04:22.1]} 17... Nxe4 {[%clk 0:04:13.3]}
18. Qe2 {[%clk 0:04:15.7]} 18... Ndf6 {[%clk 0:04:08.4]} 19. Qf3 {[%clk
0:04:07.8]} 19... Bxe6 {[%clk 0:04:06.7]} 0-1

[Event "Live Chess"]
[Site "Chess.com"]
[Date "2023.05.21"]
[Round "-"]
[White "SupremeTactician"]
[Black "JoeyCage"]
[Result "0-1"]
[WhiteElo "2280"]
[BlackElo "2314"]
[TimeControl "300"]
[EndTime "2:01:08 PDT"]
[Termination "JoeyCage won by resignation"]

1. e4 {[%clk 0:04:59.8]} 1... c5 {[%clk 0:04:58.4]} 2. Nf3 {[%clk 0:04:56]} 2...
Nc6 {[%clk 0:04:54.8]} 3. d4 {[%clk 0:04:54.1]} 3... cxd4 {[%clk 0:04:53.5]} 4.
Nxd4 {[%clk 0:04:54]} 4... g6 {[%clk 0:04:51.8]} 5. Be3 {[%clk 0:04:52.9]} 5...
Bg7 {[%clk 0:04:50.5]} 6. c4 {[%clk 0:04:51.9]} 6... Nf6 {[%clk 0:04:47]} 7. Nc3
{[%clk 0:04:50.9]} 7... d6 {[%clk 0:04:45.5]} 8. f3 {[%clk 0:04:49.9]} 8... O-O
{[%clk 0:04:42.9]} 9. Qd2 {[%clk 0:04:49.5]} 9... a5 {[%clk 0:04:41.7]} 10. Rc1
{[%clk 0:04:48.3]} 10... a4 {[%clk 0:04:40.6]} 11. Be2 {[%clk 0:04:47.2]} 11...
Qa5 {[%clk 0:04:38.7]} 12. O-O {[%clk 0:04:46]} 12... Bd7 {[%clk 0:04:37.4]} 13.
Rfd1 {[%clk 0:04:45.2]} 13... Rfc8 {[%clk 0:04:35.3]} 14. Bf1 {[%clk 0:04:39.6]}
14... Ne5 {[%clk 0:04:32.9]} 15. b3 {[%clk 0:04:34.7]} 15... axb3 {[%clk
0:04:22.3]} 16. axb3 {[%clk 0:04:34.6]} 16... Nc6 {[%clk 0:04:17.8]} 17. Qf2
{[%clk 0:04:26.4]} 17... Nxd4 {[%clk 0:04:14.5]} 18. Bxd4 {[%clk 0:04:25.8]}
18... Qb4 {[%clk 0:04:10.6]} 19. Bxf6 {[%clk 0:04:19.3]} 19... exf6 {[%clk
0:04:05.1]} 20. Nd5 {[%clk 0:04:12.3]} 20... Qxb3 {[%clk 0:04:01.1]} 21. Rb1
{[%clk 0:04:11.1]} 21... Qa4 {[%clk 0:03:52.2]} 22. Nb6 {[%clk 0:04:07.5]} 22...
Qc6 {[%clk 0:03:46.1]} 23. Nxa8 {[%clk 0:04:02.1]} 23... Rxa8 {[%clk 0:03:44.8]}
24. Qb6 {[%clk 0:04:00.6]} 24... Qxb6+ {[%clk 0:03:35.4]} 25. Rxb6 {[%clk
0:03:59.4]} 25... Bc6 {[%clk 0:03:33.9]} 26. Rxd6 {[%clk 0:03:25.8]} 26... Bf8
{[%clk 0:03:32.4]} 27. Rdxc6 {[%clk 0:03:25.2]} 27... bxc6 {[%clk 0:03:31]} 28.
Rxc6 {[%clk 0:03:25.1]} 28... Kg7 {[%clk 0:03:26.4]} 29. Rc7 {[%clk 0:03:22.6]}
29... Ra5 {[%clk 0:03:18.7]} 30. Kf2 {[%clk 0:03:17.9]} 30... Bd6 {[%clk
0:03:16.2]} 31. Rd7 {[%clk 0:03:08.1]} 31... Bxh2 {[%clk 0:03:14.6]} 32. g3
{[%clk 0:02:56]} 32... Ra2+ {[%clk 0:03:10.7]} 33. Be2 {[%clk 0:02:55.7]} 33...
Bxg3+ {[%clk 0:03:08.8]} 34. Kxg3 {[%clk 0:02:55.6]} 34... Rxe2 {[%clk
0:03:07.6]} 35. c5 {[%clk 0:02:54]} 35... Rc2 {[%clk 0:03:06.2]} 36. Rc7 {[%clk
0:02:53.3]} 36... g5 {[%clk 0:03:02.1]} 37. c6 {[%clk 0:02:52.2]} 37... h5
{[%clk 0:02:59.6]} 38. Rc8 {[%clk 0:02:51.5]} 38... h4+ {[%clk 0:02:48]} 39. Kh3
{[%clk 0:02:45.1]} 39... Rf2 {[%clk 0:02:45.2]} 40. Kg4 {[%clk 0:02:39.7]} 40...
Rg2+ {[%clk 0:02:43.4]} 41. Kh3 {[%clk 0:02:34.9]} 41... Rg3+ {[%clk 0:02:42.1]}
42. Kh2 {[%clk 0:02:34.5]} 42... Rxf3 {[%clk 0:02:41.2]} 43. c7 {[%clk
0:02:34.4]} 43... Rc3 {[%clk 0:02:39.9]} 44. Kg2 {[%clk 0:02:33]} 44... g4
{[%clk 0:02:37.5]} 45. Kf2 {[%clk 0:02:32.1]} 45... h3 {[%clk 0:02:35.3]} 46. e5
{[%clk 0:02:30.2]} 46... fxe5 {[%clk 0:02:33.4]} 0-1

[Event "Live Chess"]
[Site "Chess.com"]
[Date "2023.05.21"]
[Round "-"]
[White "Rusty_Bridges"]
[Black "wadsy27"]
[Result "0-1"]
[WhiteElo "1514"]
[BlackElo "2569"]
[TimeControl "300"]
[EndTime "2:01:40 PDT"]
[Termination "wadsy27 won on time"]

1. e4 {[%clk 0:04:53.1]} 1... c5 {[%clk 0:04:56.3]} 2. Be2 {[%clk 0:04:51.4]}
2... e6 {[%clk 0:04:55.4]} 3. f4 {[%clk 0:04:49.2]} 3... Nc6 {[%clk 0:04:54.7]}
4. Nf3 {[%clk 0:04:47.2]} 4... Nf6 {[%clk 0:04:53.4]} 5. d3 {[%clk 0:04:43.8]}
5... d5 {[%clk 0:04:52]} 6. e5 {[%clk 0:04:42]} 6... Nd7 {[%clk 0:04:51.6]} 7.
O-O {[%clk 0:04:40.2]} 7... Be7 {[%clk 0:04:49.8]} 8. Be3 {[%clk 0:04:38.2]}
8... b6 {[%clk 0:04:48.2]} 9. Nc3 {[%clk 0:04:34.6]} 9... a6 {[%clk 0:04:46.3]}
10. Bf2 {[%clk 0:04:30.8]} 10... Bb7 {[%clk 0:04:45.2]} 11. Re1 {[%clk
0:04:26.9]} 11... Qc7 {[%clk 0:04:44.2]} 12. Bf1 {[%clk 0:04:24.8]} 12... O-O-O
{[%clk 0:04:43.4]} 13. a3 {[%clk 0:04:22.8]} 13... h6 {[%clk 0:04:42.5]} 14. d4
{[%clk 0:04:09.6]} 14... c4 {[%clk 0:04:39.2]} 15. b3 {[%clk 0:04:07.3]} 15...
b5 {[%clk 0:04:35]} 16. bxc4 {[%clk 0:04:05.1]} 16... bxc4 {[%clk 0:04:34.2]}
17. Qb1 {[%clk 0:03:42.3]} 17... g5 {[%clk 0:04:26.9]} 18. fxg5 {[%clk
0:03:37.4]} 18... hxg5 {[%clk 0:04:26.8]} 19. Nd2 {[%clk 0:03:25.4]} 19... Qa5
{[%clk 0:04:20.2]} 20. Qb2 {[%clk 0:03:20.5]} 20... Kc7 {[%clk 0:04:13.2]} 21.
Re3 {[%clk 0:03:18.1]} 21... Rb8 {[%clk 0:04:10.2]} 22. Rb1 {[%clk 0:03:09.5]}
22... Ba8 {[%clk 0:04:04.4]} 23. Qa2 {[%clk 0:03:02.9]} 23... Rxb1 {[%clk
0:04:00.8]} 24. Ndxb1 {[%clk 0:02:57.2]} 24... Rb8 {[%clk 0:03:52.3]} 25. Rf3
{[%clk 0:02:50.5]} 25... Nd8 {[%clk 0:03:51.2]} 26. Nd2 {[%clk 0:02:37.5]} 26...
Bc6 {[%clk 0:03:45.3]} 27. Rg3 {[%clk 0:02:19.5]} 27... Qb6 {[%clk 0:03:34.5]}
28. Ne2 {[%clk 0:02:08.9]} 28... Qb2 {[%clk 0:03:32.4]} 29. Qxb2 {[%clk
0:01:55.4]} 29... Rxb2 {[%clk 0:03:32.3]} 30. Rc3 {[%clk 0:01:43.3]} 30... Nb6
{[%clk 0:03:29.9]} 31. Nf3 {[%clk 0:01:11.6]} 31... Na4 {[%clk 0:03:26.7]} 32.
Re3 {[%clk 0:01:09.8]} 32... Rxc2 {[%clk 0:03:25.5]} 33. Ng3 {[%clk 0:01:03.3]}
33... Ra2 {[%clk 0:03:23.5]} 34. Nh5 {[%clk 0:00:59.4]} 34... Rxa3 {[%clk
0:03:22.5]} 35. Nf6 {[%clk 0:00:54.4]} 35... Rxe3 {[%clk 0:03:20.1]} 36. Bxe3
{[%clk 0:00:52.5]} 36... c3 {[%clk 0:03:09.9]} 37. Bxg5 {[%clk 0:00:46.6]} 37...
Bb5 {[%clk 0:03:06.6]} 38. h4 {[%clk 0:00:42.6]} 38... Bxf1 {[%clk 0:02:47]} 39.
Kxf1 {[%clk 0:00:40.9]} 39... Nc6 {[%clk 0:02:41.8]} 40. h5 {[%clk 0:00:39]}
40... Bf8 {[%clk 0:02:40.5]} 41. Nh7 {[%clk 0:00:27.5]} 41... Bg7 {[%clk
0:02:35.8]} 42. Bf6 {[%clk 0:00:26.3]} 42... c2 {[%clk 0:02:28.7]} 43. Bg5
{[%clk 0:00:21.6]} 43... Nc3 {[%clk 0:02:20.2]} 44. Nf6 {[%clk 0:00:17.7]} 44...
Ne4 {[%clk 0:02:16]} 45. Bc1 {[%clk 0:00:14.9]} 45... Nxf6 {[%clk 0:02:13.4]}
46. exf6 {[%clk 0:00:13.3]} 46... Bxf6 {[%clk 0:02:13.3]} 47. h6 {[%clk
0:00:12]} 47... Kd7 {[%clk 0:02:10.4]} 48. h7 {[%clk 0:00:10.7]} 48... Bh8
{[%clk 0:02:08.7]} 49. Ng5 {[%clk 0:00:09.1]} 49... Ke7 {[%clk 0:02:07.5]} 50.
Ke2 {[%clk 0:00:07.4]} 50... Nxd4+ {[%clk 0:02:06]} 51. Kd3 {[%clk 0:00:06.1]}
51... f6 {[%clk 0:02:04.8]} 52. Nf3 {[%clk 0:00:04.4]} 52... Nxf3 {[%clk
0:02:03.6]} 53. gxf3 {[%clk 0:00:04.3]} 53... Kf7 {[%clk 0:02:01.5]} 54. Kxc2
{[%clk 0:00:04.1]} 54... Kg6 {[%clk 0:02:01]} 55. Kd3 {[%clk 0:00:02.7]} 55...
Kxh7 {[%clk 0:02:00.6]} 56. Bd2 {[%clk 0:00:01.5]} 56... Kg6 {[%clk 0:02:00.2]}
57. Bc3 {[%clk 0:00:00.5]} 57... Kf5 {[%clk 0:01:59.7]} 0-1

[Event "Live Chess"]
[Site "Chess.com"]
[Date "2023.05.21"]
[Round "-"]
[White "rasrae1364"]
[Black "JanMur7"]
[Result "1-0"]
[WhiteElo "1954"]
[BlackElo "1961"]
[TimeControl "300"]
[EndTime "2:01:44 PDT"]
[Termination "rasrae1364 won by resignation"]

1. d4 {[%clk 0:04:55.9]} 1... Nf6 {[%clk 0:04:58.9]} 2. e3 {[%clk 0:04:51.6]}
2... e6 {[%clk 0:04:57.4]} 3. Nf3 {[%clk 0:04:47.3]} 3... d5 {[%clk 0:04:55.5]}
4. c4 {[%clk 0:04:43.3]} 4... Be7 {[%clk 0:04:52.4]} 5. Be2 {[%clk 0:04:38.9]}
5... O-O {[%clk 0:04:51.3]} 6. O-O {[%clk 0:04:33.8]} 6... b6 {[%clk 0:04:50.9]}
7. cxd5 {[%clk 0:04:27.6]} 7... Nxd5 {[%clk 0:04:47.7]} 8. e4 {[%clk 0:04:22.1]}
8... Nf6 {[%clk 0:04:46.2]} 9. Qc2 {[%clk 0:04:17.5]} 9... Bb7 {[%clk
0:04:43.3]} 10. Nc3 {[%clk 0:04:11.9]} 10... Nbd7 {[%clk 0:04:40.2]} 11. Bf4
{[%clk 0:04:04.7]} 11... c5 {[%clk 0:04:36.7]} 12. Rad1 {[%clk 0:03:59.6]} 12...
cxd4 {[%clk 0:04:32.5]} 13. Rxd4 {[%clk 0:03:55]} 13... Bc5 {[%clk 0:04:26]} 14.
Rd2 {[%clk 0:03:49.3]} 14... Qe7 {[%clk 0:04:21.1]} 15. e5 {[%clk 0:03:44.8]}
15... Nd5 {[%clk 0:04:14.7]} 16. Ng5 {[%clk 0:03:41]} 16... g6 {[%clk
0:04:07.1]} 17. Nxd5 {[%clk 0:03:35.5]} 17... Bxd5 {[%clk 0:04:03.3]} 18. Bc4
{[%clk 0:03:30.7]} 18... Bxc4 {[%clk 0:03:56.5]} 19. Qxc4 {[%clk 0:03:25.8]}
19... Nxe5 {[%clk 0:03:53.3]} 20. Qc3 {[%clk 0:03:21.2]} 20... Nc6 {[%clk
0:03:37.2]} 21. Ne4 {[%clk 0:03:16.2]} 21... e5 {[%clk 0:03:23.3]} 22. Bh6
{[%clk 0:03:10]} 22... Rfd8 {[%clk 0:03:19.2]} 23. Bg5 {[%clk 0:03:05.5]} 23...
Qf8 {[%clk 0:02:34.9]} 24. Bxd8 {[%clk 0:02:59.3]} 24... Bb4 {[%clk 0:02:16.8]}
25. Qxc6 {[%clk 0:02:53.5]} 25... Bxd2 {[%clk 0:02:12.7]} 26. Qxa8 {[%clk
0:02:49]} 1-0

[Event "Live Chess"]
[Site "Chess.com"]
[Date "2023.05.21"]
[Round "-"]
[White "Ferrarifan27"]
[Black "PrinceCharming_1"]
[Result "1-0"]
[WhiteElo "2094"]
[BlackElo "1622"]
[TimeControl "300"]
[EndTime "2:01:56 PDT"]
[Termination "Ferrarifan27 won by resignation"]

1. e4 {[%clk 0:04:59.3]} 1... e5 {[%clk 0:04:59]} 2. Nf3 {[%clk 0:04:57.9]} 2...
Nc6 {[%clk 0:04:58.6]} 3. Bb5 {[%clk 0:04:56.2]} 3... Nf6 {[%clk 0:04:57.8]} 4.
O-O {[%clk 0:04:54.3]} 4... Nxe4 {[%clk 0:04:57.3]} 5. d4 {[%clk 0:04:50.2]}
5... Nd6 {[%clk 0:04:56.7]} 6. Bxc6 {[%clk 0:04:48.8]} 6... bxc6 {[%clk
0:04:56.6]} 7. dxe5 {[%clk 0:04:45.7]} 7... Nb7 {[%clk 0:04:55.7]} 8. Nc3 {[%clk
0:04:35.3]} 8... Be7 {[%clk 0:04:55.3]} 9. Re1 {[%clk 0:04:32.6]} 9... O-O
{[%clk 0:04:54.6]} 10. Bf4 {[%clk 0:04:27.3]} 10... Nc5 {[%clk 0:04:53.8]} 11.
Qd2 {[%clk 0:04:21.8]} 11... Ne6 {[%clk 0:04:52.8]} 12. Be3 {[%clk 0:04:20.9]}
12... a5 {[%clk 0:04:51.3]} 13. Ne4 {[%clk 0:04:18.5]} 13... Ba6 {[%clk
0:04:46.1]} 14. b3 {[%clk 0:04:10.2]} 14... d5 {[%clk 0:04:41.9]} 15. Ng3 {[%clk
0:04:05.1]} 15... Bc5 {[%clk 0:04:23.3]} 16. Bxc5 {[%clk 0:03:59.3]} 16... Nxc5
{[%clk 0:04:22.6]} 17. Qxa5 {[%clk 0:03:56.3]} 17... Ne6 {[%clk 0:04:10.4]} 18.
Qc3 {[%clk 0:03:49.5]} 18... Qd7 {[%clk 0:04:06.8]} 19. a4 {[%clk 0:03:47.3]}
19... c5 {[%clk 0:04:04.7]} 20. Rad1 {[%clk 0:03:41.9]} 20... d4 {[%clk
0:04:03]} 21. Qd2 {[%clk 0:03:40.3]} 21... Bb7 {[%clk 0:04:01.9]} 22. Nh4 {[%clk
0:03:32.8]} 22... Qc6 {[%clk 0:03:54.9]} 23. f3 {[%clk 0:03:31]} 23... Rad8
{[%clk 0:03:50.2]} 24. Nhf5 {[%clk 0:03:29.4]} 24... Rfe8 {[%clk 0:03:31.9]} 25.
Ne4 {[%clk 0:03:21.3]} 25... Nf8 {[%clk 0:03:26.6]} 26. Qg5 {[%clk 0:03:16.1]}
26... Ng6 {[%clk 0:03:25.1]} 27. h4 {[%clk 0:03:11.6]} 27... h6 {[%clk
0:03:23.4]} 28. Qg3 {[%clk 0:03:08.6]} 28... Kh7 {[%clk 0:03:22.1]} 29. h5
{[%clk 0:03:07]} 29... Qd7 {[%clk 0:03:10.8]} 30. hxg6+ {[%clk 0:03:05]} 30...
fxg6 {[%clk 0:03:10.7]} 31. Nh4 {[%clk 0:03:01.3]} 31... Qe6 {[%clk 0:03:05.1]}
32. Nxc5 {[%clk 0:02:58.7]} 32... Qc6 {[%clk 0:03:00]} 33. Nxb7 {[%clk
0:02:57.4]} 33... Qxb7 {[%clk 0:02:59.4]} 34. Qxg6+ {[%clk 0:02:56.2]} 34... Kh8
{[%clk 0:02:59.1]} 35. Nf5 {[%clk 0:02:53.2]} 35... c6 {[%clk 0:02:58.4]} 36. e6
{[%clk 0:02:49.6]} 36... Rd6 {[%clk 0:02:56]} 37. Qxe8+ {[%clk 0:02:47.8]} 1-0

[Event "Live Chess"]
[Site "Chess.com"]
[Date "2023.05.21"]
[Round "-"]
[White "NAZRIZ1977"]
[Black "DRS44"]
[Result "1-0"]
[WhiteElo "1970"]
[BlackElo "1323"]
[TimeControl "300"]
[EndTime "2:01:57 PDT"]
[Termination "NAZRIZ1977 won by resignation"]

1. c4 {[%clk 0:04:55]} 1... e5 {[%clk 0:04:55.1]} 2. g3 {[%clk 0:04:54.4]} 2...
c6 {[%clk 0:04:47.8]} 3. d4 {[%clk 0:04:52.5]} 3... exd4 {[%clk 0:04:38.2]} 4.
Qxd4 {[%clk 0:04:52.4]} 4... d5 {[%clk 0:04:33.9]} 5. Bg2 {[%clk 0:04:51.3]}
5... dxc4 {[%clk 0:04:22.2]} 6. Qxd8+ {[%clk 0:04:47.6]} 6... Kxd8 {[%clk
0:04:17.8]} 7. Nf3 {[%clk 0:04:43.4]} 7... Nf6 {[%clk 0:04:09.2]} 8. Ne5 {[%clk
0:04:42.1]} 8... Bb4+ {[%clk 0:03:58.1]} 9. Bd2 {[%clk 0:04:40.3]} 9... Bxd2+
{[%clk 0:03:55.6]} 10. Nxd2 {[%clk 0:04:39.2]} 10... Kc7 {[%clk 0:03:51.7]} 11.
Nxf7 {[%clk 0:04:31.9]} 11... Rf8 {[%clk 0:03:43.3]} 12. Ne5 {[%clk 0:04:27]}
12... Be6 {[%clk 0:03:20.6]} 13. Nexc4 {[%clk 0:04:23.2]} 13... Nbd7 {[%clk
0:03:09.4]} 14. O-O {[%clk 0:04:20.6]} 14... Rae8 {[%clk 0:02:59.1]} 15. e3
{[%clk 0:04:16.4]} 15... Kb8 {[%clk 0:02:52.4]} 16. a4 {[%clk 0:04:14.7]} 16...
Nc5 {[%clk 0:02:43]} 17. b4 {[%clk 0:04:07.3]} 17... Nd3 {[%clk 0:02:38.3]} 18.
b5 {[%clk 0:04:03.9]} 18... cxb5 {[%clk 0:02:30.8]} 19. axb5 {[%clk 0:04:02.1]}
19... Rc8 {[%clk 0:02:19]} 20. Nd6 {[%clk 0:03:47.2]} 20... Rc2 {[%clk 0:02:15]}
21. N2e4 {[%clk 0:03:35]} 21... Nxe4 {[%clk 0:02:07.5]} 22. Bxe4 {[%clk
0:03:15.5]} 22... Ne5 {[%clk 0:01:46.1]} 23. Bxc2 {[%clk 0:03:12.2]} 1-0

[Event "Live Chess"]
[Site "Chess.com"]
[Date "2023.05.21"]
[Round "-"]
[White "WombatIn_A_Box"]
[Black "WelshTiger"]
[Result "0-1"]
[WhiteElo "533"]
[BlackElo "2350"]
[TimeControl "300"]
[EndTime "2:02:01 PDT"]
[Termination "WelshTiger won by checkmate"]

1. e4 {[%clk 0:04:56.2]} 1... c6 {[%clk 0:04:58.7]} 2. d4 {[%clk 0:04:55.1]}
2... d5 {[%clk 0:04:58.6]} 3. f3 {[%clk 0:04:52]} 3... dxe4 {[%clk 0:04:57.5]}
4. fxe4 {[%clk 0:04:50.4]} 4... e5 {[%clk 0:04:57.4]} 5. d5 {[%clk 0:04:44.8]}
5... Nf6 {[%clk 0:04:52]} 6. Nc3 {[%clk 0:04:42.5]} 6... Bb4 {[%clk 0:04:49.4]}
7. Nf3 {[%clk 0:04:41]} 7... O-O {[%clk 0:04:43.1]} 8. Nxe5 {[%clk 0:04:39.2]}
8... Nxe4 {[%clk 0:04:37.9]} 9. a3 {[%clk 0:04:27]} 9... Bxc3+ {[%clk
0:04:30.6]} 10. bxc3 {[%clk 0:04:26.3]} 10... Qh4+ {[%clk 0:04:26.1]} 11. g3
{[%clk 0:04:24.7]} 11... Nxg3 {[%clk 0:04:24.8]} 12. hxg3 {[%clk 0:04:23.6]}
12... Qxh1 {[%clk 0:04:23.3]} 13. Qf3 {[%clk 0:04:07.9]} 13... Qxf3 {[%clk
0:04:21.3]} 14. Nxf3 {[%clk 0:04:07.6]} 14... cxd5 {[%clk 0:04:20.7]} 15. Bf4
{[%clk 0:04:02.6]} 15... Nc6 {[%clk 0:04:19.9]} 16. Bb5 {[%clk 0:03:59.8]} 16...
Bg4 {[%clk 0:04:17.1]} 17. Nh2 {[%clk 0:03:55.8]} 17... Bf5 {[%clk 0:04:15.7]}
18. O-O-O {[%clk 0:03:51.5]} 18... Rad8 {[%clk 0:04:13.9]} 19. Bd3 {[%clk
0:03:47.1]} 19... Bxd3 {[%clk 0:04:12.1]} 20. cxd3 {[%clk 0:03:45.9]} 20... d4
{[%clk 0:04:11.2]} 21. c4 {[%clk 0:03:42.3]} 21... Rfe8 {[%clk 0:04:04.9]} 22.
Nf3 {[%clk 0:03:39]} 22... Re2 {[%clk 0:04:03.7]} 23. Nxd4 {[%clk 0:03:32.6]}
23... Nxd4 {[%clk 0:04:01.7]} 24. Rd2 {[%clk 0:03:30]} 24... Nb3+ {[%clk
0:04:00.1]} 25. Kc2 {[%clk 0:03:28.4]} 25... Nxd2 {[%clk 0:03:58.1]} 26. Bxd2
{[%clk 0:03:27]} 26... Rxd2+ {[%clk 0:03:55.9]} 27. Kxd2 {[%clk 0:03:26.7]}
27... f5 {[%clk 0:03:55.1]} 28. Ke3 {[%clk 0:03:24.2]} 28... Kf7 {[%clk
0:03:54.6]} 29. Kf4 {[%clk 0:03:21.8]} 29... Kf6 {[%clk 0:03:54.2]} 30. g4
{[%clk 0:03:19.5]} 30... g5+ {[%clk 0:03:54.1]} 31. Kg3 {[%clk 0:03:14.8]} 31...
Rxd3+ {[%clk 0:03:53.2]} 32. Kf2 {[%clk 0:03:11.9]} 32... fxg4 {[%clk
0:03:53.1]} 33. Ke2 {[%clk 0:03:09.8]} 33... Rxa3 {[%clk 0:03:52.3]} 34. Kd2
{[%clk 0:03:08.6]} 34... g3 {[%clk 0:03:51.5]} 35. Ke2 {[%clk 0:03:07.5]} 35...
h5 {[%clk 0:03:48.6]} 36. Kf1 {[%clk 0:03:06.1]} 36... h4 {[%clk 0:03:47.9]} 37.
Kg2 {[%clk 0:03:05.3]} 37... Kf5 {[%clk 0:03:44.9]} 38. c5 {[%clk 0:03:04.4]}
38... Kf4 {[%clk 0:03:43.5]} 39. c6 {[%clk 0:03:03.1]} 39... bxc6 {[%clk
0:03:42.9]} 40. Kh3 {[%clk 0:03:01.4]} 40... Ra1 {[%clk 0:03:28.7]} 41. Kg2
{[%clk 0:02:59.4]} 41... Ra2+ {[%clk 0:03:28]} 42. Kh3 {[%clk 0:02:58.4]} 42...
Rh2# {[%clk 0:03:27]} 0-1